Cogmind - Beta 10.2 @@@ ROGUE MODE // 2021.03.20 @ 00:55:33 Player: BOTHUNTER Result: Destroyed by as-58159 with Assembled Heavy Rifle Performance ------------- Evolutions (0) 0 Regions Visited (2) 400 Robots Destroyed (18) 90 Value Destroyed (522) 522 Prototype IDs (0) 0 Alien Tech Used (0) 0 Bonus (0) 0 TOTAL SCORE: 1012 Bonus ------- None Cogmind --------- Core Integrity 0/250 Matter 289/300 Energy 97/100 System Corruption 3% Temperature Cool (0) Movement Rolling (110) Ox3 Location -10/Mines Parts ------- > --- POWER (1) -------- (None) > --- PROPULSION (2) --- Wheel > --- UTILITY (2) ------ High-capacity Storage Unit > --- WEAPON (2) ------- (None) > --- INVENTORY (12) --- Ion Engine Aluminum Leg Aluminum Leg Large Matter Pod (150) High-capacity Matter Pod (200) Core Shielding Peak State ------------ > --- POWER ------------ Light Nuclear Core > --- PROPULSION ------- Light Treads Light Treads > --- UTILITY ---------- Improved Heat Sink High-capacity Storage Unit > --- WEAPON ----------- Particle Gun Light EM Pulse Cannon > --- INVENTORY -------- Ion Engine Aluminum Leg Aluminum Leg Wheel Large Matter Pod High-capacity Matter Pod Core Shielding Light Assault Rifle Light Cannon Mining Claw [Rating: 14] Favorites ----------- Power Light Nuclear Core Engine Ion Engine Power Core Light Nuclear Core Propulsion Light Treads Treads Light Treads Wheel Wheel Utility Small Storage Unit Device Improved Heat Sink Storage Small Storage Unit Weapon Light EM Pulse Cannon Energy Gun Particle Gun Energy Cannon Light EM Pulse Cannon Ballistic Gun Assault Rifle Ballistic Cannon Light Cannon Slashing Weapon Mining Claw Build | -11 -10 -10 ------- Run | Scr Mat Min Slots Evolved . | . . . Power . | . . . Propulsion . | . . . Utility . | . . . Weapon . | . . . Parts Attached 19 | 7 5 7 Power 2 | 1 1 . Engine 1 | 1 . . Core 1 | . 1 . Reactor . | . . . Propulsion 3 | 2 . 1 Treads 2 | 2 . . Leg . | . . . Wheel 1 | . . 1 Hover . | . . . Flight . | . . . Utility 3 | 1 2 . Device 1 | . 1 . Storage 2 | 1 1 . Processor . | . . . Hackware . | . . . Protection . | . . . Artifact . | . . . Weapon 11 | 3 2 6 Energy Gun 2 | . . 2 Energy Cannon 2 | . 2 . Ballistic Gun 5 | 3 . 2 Ballistic Cannon 1 | . . 1 Launcher . | . . . Special Weapon . | . . . Impact Weapon . | . . . Slashing Weapon 1 | . . 1 Piercing Weapon . | . . . Special Melee Weapon . | . . . Unidentified Prototypes . | . . . Parts Lost 10 | . . 10 Power 1 | . . 1 Propulsion 2 | . . 2 Utility 1 | . . 1 Weapon 6 | . . 6 Highest Loss Streak 7 | . . 7 Average Slot Usage (%) 90 | . 88 92 Engine 5 | . 10 . Core 7 | . 3 12 Treads 26 | . 28 24 Device 7 | . 3 13 Storage 14 | . 14 14 Energy Gun 4 | . . 11 Energy Cannon 18 | . 24 10 Ballistic Gun 2 | . 3 1 Naked Turns . | . . . Heaviest Build 46 | 13 46 45 Greatest Support 40 | 40 40 40 Greatest Overweight (x) 3 | . 1 3 Average Overweight (x) . | . . 1 Largest Inventory Capacity 12 | 6 12 12 Average Capacity 8 | 5 6 12 Most Carried 10 | 6 7 10 Average Carried 6 | 3 5 8 Final Capacity 12 | 6 12 12 Final Carried 7 | 5 7 6 Class Distribution -------------------- 100% | Mutant Dominant Class ---------------- Mutant | -10/Materials Mutant | -10/Mines Resources | -11 -10 -10 ----------- Run | Scr Mat Min Matter Collected 523 | 203 93 227 Remotely . | . . . Salvage Created 732 | . 486 246 Parts 38 | . 23 15 Haulers Intercepted . | . . . Recyclers Shooed . | . . . Parts Field Recycled . | . . . Retrieved Matter . | . . . Parts Self-Destructed . | . . . Prevented . | . . . Kills | -11 -10 -10 ------- Run | Scr Mat Min Combat Hostiles Destroyed 19 | . 7 12 Guns 7 | . . 7 Cannons 11 | . 6 5 AOE 1 | . 1 . Classes Destroyed 6 | . 4 2 Recycler 1 | . 1 . Operator 1 | . 1 . Watcher 2 | . 2 . Swarmer 5 | . . 5 Grunt 9 | . 7 2 Assembled 5 | . . 5 Best Kill Streak 5 | . 3 5 Combat Bots Only 5 | . 2 5 Max Kills in Single Turn 1 | . 1 1 Gunslinging . | . . . Exploded 1 | . 1 . Melee . | . . . Uniques/NPCs Destroyed . | . . . Combat | -11 -10 -10 -------- Run | Scr Mat Min Damage Taken 1290 | . 225 1065 Core 267 | . 27 240 Absorbed by Shields . | . . . Core Remaining (%) 100 | 100 . . Volleys Fired 58 | . 21 37 Largest 2 | . 2 2 Hottest 121 | . 112 121 Shots Fired 106 | . 42 64 Gun 42 | . . 42 Cannon 64 | . 42 22 Launcher . | . . . Special . | . . . Kinetic 25 | . . 25 Thermal 26 | . . 26 Explosive . | . . . Electromagnetic 55 | . 42 13 Robot Hit Streak 11 | . 7 11 Robot Miss Streak 3 | . 3 3 Penetration Max . | . . . Secondary Targets . | . . . Shots Hit Robots 73 | . 27 46 Core Hits 39 | . 15 24 Critical Hits . | . . . Critical Kills . | . . . Critical Parts Destroyed . | . . . Melee Attacks 6 | . . 6 Impact . | . . . Slashing 6 | . . 6 Piercing . | . . . Sneak Attacks . | . . . Combat Hostiles . | . . . Follow-up Attacks . | . . . Damage Inflicted 1577 | . 797 780 Guns 374 | . . 374 Cannons 986 | . 657 329 Explosions 139 | . 139 . Melee 58 | . . 58 Ramming 20 | . 1 19 Kinetic 215 | . . 215 Thermal 406 | . 139 267 Explosive . | . . . Electromagnetic 878 | . 657 221 Impact . | . . . Slashing 58 | . . 58 Piercing . | . . . Highest Corruption 3 | . . 3 Average Corruption 3 | . . 3 Corruption Purged . | . . . Overload Shots . | . . . Overflow Damage 74 | . 63 11 Projectiles 44 | . 44 . Explosions 19 | . 19 . Melee 11 | . . 11 Knockbacks 1 | . . 1 Impact . | . . . Kinetic 1 | . . 1 Secondary . | . . . Self-Inflicted Damage 30 | . 26 4 Shots 1 | . 1 . Rammed 4 | . 1 3 Targets Rammed 4 | . 1 3 Kicked . | . . . Crushed . | . . . Highest Temperature 228 | . 228 120 Average Temperature 56 | . 72 29 Received Heat Transfer 147 | . 111 36 Siege Activations . | . . . Robots Corrupted . | . . . Combat Hostiles . | . . . Parts Fried 6 | . 6 . Impact Corruptions . | . . . Robots Melted . | . . . Combat Hostiles . | . . . Parts Melted 1 | . 1 . Heat Transferred 779 | . 150 629 Parts Sabotaged . | . . . Parts Stolen . | . . . Parts Stripped . | . . . Power Chain Reactions 3 | . 3 . Missiles Intercepted . | . . . Alert | -11 -10 -10 ------- Run | Scr Mat Min Peak Influence 238 | . 200 238 Initial 78 | . . 78 Average 94 | . 86 119 Maximum Alert Level 1 | . 1 1 Low Security (%) 78 | 100 73 81 Level 1 21 | . 26 18 Level 2 . | . . . Level 3 . | . . . Level 4 . | . . . Level 5 . | . . . High Security . | . . . Max Security . | . . . Squads Dispatched 1 | . 1 . Investigation 1 | . 1 . Extermination . | . . . Reinforcement . | . . . Assault . | . . . Garrison . | . . . Intercept . | . . . Construction Impeded . | . . . Haulers Reinforced . | . . . Stealth | -11 -10 -10 --------- Run | Scr Mat Min Distress Signals 3 | . 3 . Communications Jammed . | . . . Distress Signals . | . . . Times Spotted 32 | . 14 18 Peak Tracking Total 5 | . 3 5 Tactical Retreats 1 | . . 1 Traps | -11 -10 -10 ------- Run | Scr Mat Min Traps Triggered 1 | . 1 . Indirectly . | . . . Trap Hack Attempts . | . . . Triggered . | . . . Disarmed . | . . . Reprogrammed . | . . . Reused . | . . . Traps Extracted . | . . . Installed . | . . . Triggered . | . . . Machines | -11 -10 -10 ---------- Run | Scr Mat Min Machines Disabled 6 | . 6 . Max in Single Turn 2 | . 2 . Machines Sabotaged . | . . . Garrisons Compromised . | . . . Overloaded Fab Kills . | . . . Fab Network Shutdowns . | . . . Hacking | -11 -10 -10 --------- Run | Scr Mat Min Machines Accessed 4 | . 4 . Terminals 3 | . 3 . Fabricators . | . . . Repair Stations . | . . . Recycling Units 1 | . 1 . Scanalyzers . | . . . Garrison Access . | . . . Total Hacks 10 | . 10 . Successful 4 | . 4 . Failed 6 | . 6 . Catastrophic 2 | . 2 . Database Lockouts . | . . . Manual 4 | . 4 . Terminals 9 | . 9 . Fabricators . | . . . Repair Stations . | . . . Recycling Units 1 | . 1 . Scanalyzers . | . . . Garrison Access . | . . . Terminal Hacks 2 | . 2 . Branch Access Points 1 | . 1 . Locate Traps 1 | . 1 . Fabricator Hacks . | . . . Repair Station Hacks . | . . . Recycling Unit Hacks 1 | . 1 . Report Inventory 1 | . 1 . Scanalyzer . | . . . Garrison Access Hacks . | . . . Unauthorized Hacks 1 | . 1 . Terminals 1 | . 1 . Botnet 1 | . 1 . Fabricators . | . . . Repair Stations . | . . . Recycling Units . | . . . Scanalyzers . | . . . Garrison Access . | . . . Data Cores Recovered 1 | . 1 . Used . | . . . Hacking Detections 4 | . 4 . Full Trace Events . | . . . Feedback Events . | . . . Feedback Blocked . | . . . Robot Schematics Acquired . | . . . Robots Built . | . . . Matter . | . . . Time . | . . . Total Robot Build Rating . | . . . Part Schematics Acquired . | . . . Parts Built . | . . . Matter . | . . . Time . | . . . Total Part Build Rating . | . . . Parts Repaired . | . . . Time . | . . . Parts Recycled . | . . . Recycled Matter . | . . . Retrieved Matter . | . . . Retrieved Components . | . . . Parts Scanalyzed . | . . . Part Schematics Acquired . | . . . Parts Damaged . | . . . Bothacking | -11 -10 -10 ------------ Run | Scr Mat Min Used RIF Installer . | . . . Robots Hacked . | . . . Non-combat . | . . . Combat . | . . . Robot Hacks Applied . | . . . Relay Couplers Released . | . . . Robots Rewired . | . . . Allies Hacked . | . . . Hacks Repelled . | . . . Allies | -11 -10 -10 -------- Run | Scr Mat Min Total Allies . | . . . Largest Group . | . . . Highest-Rated Group . | . . . Highest-Rated Ally . | . . . Total Orders . | . . . Ally Attacks . | . . . Total Damage . | . . . Kills . | . . . Allies Corrupted . | . . . Allies Melted . | . . . Intel | -11 -10 -10 ------- Run | Scr Mat Min Robot Analysis Total . | . . . Derelict Logs Recovered 2 | . . 2 Drone Launches . | . . . Drone Recoveries . | . . . Exploration | -11 -10 -10 ------------- Run | Scr Mat Min Turns Passed 1393 | 86 747 560 Spaces Moved 706 | 47 416 243 Core 3 | 3 . . Treads 669 | 44 416 209 Legs . | . . . Wheels 34 | . . 34 Hover . | . . . Flight . | . . . Fastest Speed 50 | 50 160 110 Average Speed 163 | 152 160 170 Slowest Speed 180 | 160 180 180 Overloaded Moves . | . . . Propulsion Burnouts . | . . . Robots Hopped . | . . . Cave-ins Triggered . | . . . Exploration Rate (%) 40 | 4 56 60 Regions Visited 2 Branch Regions 1 Pre-discovered Areas . | . . . Known Exits Taken 1 | . 1 . Unknown Exits Taken 1 | 1 . . Scrap Searched 1 | . . 1 Spaces Dug . | . . . Terrain Destroyed 4 | . 4 . Melee . | . . . Projectile . | . . . AOE 4 | . 4 . Terrain Rammed . | . . . Walls Destroyed . | . . . Machines Disabled . | . . . Actions | -11 -10 -10 --------- Run | Scr Mat Min Total 825 | 58 452 315 Wait 17 | . 4 13 Move 704 | 46 415 243 Hop . | . . . Pick Up 11 | 5 2 4 Fast Attach 12 | 5 4 3 Attach 5 | 1 . 4 Detach . | . . . Swap 2 | 1 1 . Drop 6 | . 4 2 Fire 58 | . 21 37 Melee 6 | . . 6 Ram 1 | . . 1 Kick . | . . . Crush 3 | . 1 2 Escape Stasis . | . . . Rewire . | . . . Trap . | . . . Miscellaneous . | . . . Route ------- -11/Scrapyard -10/Materials -10/Mines (discovered 1 exit: Mat) History --------- Turn | Location | Event 2 | -11/Scrapyard | Met Revision 17 17 | -11/Scrapyard | Discovered new exit (range 16) 87 | -11/Scrapyard | Entered Materials 307 | -10/Materials | Build established: Mutant 589 | -10/Materials | Identified exit to Mines 834 | -10/Materials | Entered Mines 1067 | -10/Mines | Identified exit to Materials 1082 | -10/Mines | Learned Materials terminal intel 1253 | -10/Mines | Assembled infested the area 1322 | -10/Mines | Core integrity fell below 50% 1356 | -10/Mines | Core integrity fell below 20% 1383 | -10/Mines | Lost 7 parts (1p2n1u3w) 1394 | -10/Mines | Destroyed by as-58159 with Assembled Heavy Rifle Last Messages --------------- 01352_ Imp. Heat Sink destroyed. 01373_ as-91940 sneak attacks. 01373_ K-01 Serf system corrupted by crushing effect. 01373_ K-01 Serf knocked back. 01374_ K-01 Serf system terminally corrupted. 01376_ K-01 Serf collects debris. 01377_ as-23164 sneak attacks. 01377_ K-01 Serf destroyed. 01378_ as-91940 sneak attacks. 01378_ U-05 Engineer system corrupted by crushing effect. 01379_ U-05 Engineer system terminally corrupted. 01382_ Acquired 28 matter. 01385_ as-91940 sneak attacks. 01385_ U-05 Engineer system corrupted by crushing effect. 01385_ U-05 Engineer knocked back. 01385_ Mining Claw destroyed. 01385_ System corrupted by crushing effect (+3). 01385_ Slammed into U-05 Engineer. 01390_ Acquired Lgt. Assault Rifle. 01393_ Lgt. Assault Rifle severed. Map ----- +----------------------------------------------------+ | | | | | | | | | | | | | | | | | | | | | | | | | | | | | | | | | ?????????????????????????????????????????????????? | | ?????????????????????????????????????????????????? | | ??????????????????????????????????????##?????????? | | ????????????????????########?????????## ????????# | | ????????????????????# #????????## ?????## | | ????????????????????# """ #???????## #???## | | ????????????????????# """ #???????# ##?## | | ????????????????????# """ #???????# ### | | ????????????????????# """ #???????# | | ?????????####???????# =@ #????????# | | ????????## #??##### a=% #????????# | | ???????? ### ####a###???????## | | ????????? ###a#?????????# | | ????????????# ##%###???????# | | ??????????????# =%%!#??####??# | | ???????????????# ###%#?## ##?## | | ???????????????# #?# #?# ##?## | | ??????????????## ##?# ### #### | | #??????????#### ###??# % ## | | #?????????## ##????# % %= | | #?????????# #?????###### ! # | | ####??????# ##??????????## ## | | % #??????## ##????????????# ### ## | | ## #???????#### #?????????????## ## #?## # | | ## ##?????????# #??????????????##### #??# | | ## ########??# #??????????????????# #### | | # #??# #??????????????????# | | #??# #??????????????????# ##### | | ##### #??# #??????????????????# #???#### | | #???# #??# #??????????????????# #??????## | | ##???# #??# #??????????????????# #????????# | | ##????# #??# ######?????????????# #?????????# | | #?????# #?## ##????????????# ######?????# | | # #?????# ### #????????????# #?????? | +----------------------------------------------------+ Best States ------------- Heat Dissipation 39 Energy Generation 14 Energy Capacity 250 Matter Stores 300 Matter Capacity 300 Sight Range 16 Terrain Scan Density 10 Evasion (%) 40 Recoil Reduction 2 Item Schematics ----------------- None Robot Schematics ------------------ None Fabricated ------------ Nothing Alien Tech Used ----------------- None Achievements -------------- None Challenges ------------ None Game ------ Seed SmartbombBurstUnit Manual? 0 Play Time 00:16:54 Cumulative 139.3 hours Start 2021.03.19 @ 23:37:55 End 2021.03.20 @ 00:55:33 Sessions 1 Manual Loads 0 Difficulty Rogue Special Mode None Game No. 201 Rogue 177 Adventurer 22 Explorer 2 Win Type - Total 1 Types 1/0/0/0/0/0/0/0/0 Lore% 52 Gallery% 58 Achievement% 45 Wizard Run 0 Options --------- ASCII 0 Keyboard 0 Movement Numpad Keybinds 0 Fullscreen 1 Font 14/SmallcapsGlow Map View 84x54 Tactical HUD 1 Map Filters NONE Filters NONE Steam 1 RUN: 423d0bac-8172-4ac6-bfad-bd4931020287